Cogmind - Beta 12 @@@ ROGUE MODE // 2023.04.03 @ 00:27:58 Player: ArabianSandBoa Result: Core destroyed Performance ------------- Evolutions (3) 1500 Regions Visited (11) 2200 Robots Destroyed (181) 905 Value Destroyed (8362) 8362 Prototype IDs (46) 920 Alien Tech Used (0) 0 Bonus (3763) 3763 TOTAL SCORE: 17650 Bonus ------- High Alert Combat Kills 1976 Follower Combat Kills 99 Entered Garrisons 400 Used RIF Installer 1000 Aligned with FarCom 300 Friendly Fire -12 Cogmind --------- Core Integrity 0/700 Matter 25/300 Energy 166/290 System Corruption 2% Temperature Critical (658) Movement Core (1900) Ox37 Location -7/Garrison Parts ------- > --- POWER (1) -------- Improved Deuterium Engine > --- PROPULSION (5) --- (None) > --- UTILITY (5) ------ Huge Storage Unit Improved Targeting Computer Hacking Suite > --- WEAPON (2) ------- Matter Neutralizer Heavy Gauss Cannon > --- INVENTORY (25) --- Light Quantum Reactor Medium Storage Unit Humpback Advanced Weight Redist. System Relay Coupler [NC] (30) Relay Coupler [Swarmer] (31) Relay Coupler [Cutter] (26) Relay Coupler [Grunt] (33) Relay Coupler [Brawler] (25) Relay Coupler [Sentry] (21) Relay Coupler [Behemoth] (11) Bomb Drone Bay Improved Proton Missile Launcher Micro-nuke Launcher Remote Datajack Field Lobotomy Kit (5) Heavy Flail Peak State ------------ > --- POWER ------------ Light Quantum Reactor > --- PROPULSION ------- Aluminum Leg Carbon-fiber Leg Carbon-fiber Leg Flexi-carbon Leg Myomer Leg > --- UTILITY ---------- Huge Storage Unit Improved Targeting Computer Improved Weapon Shielding Hacking Suite System Shield > --- WEAPON ----------- Enhanced Autogun Improved Proton Missile Launcher > --- INVENTORY -------- Micro Nuclear Core Flight Unit Flight Unit Flight Unit Improved VTOL Module Improved VTOL Module Medium Storage Unit Humpback Advanced Weight Redist. System Relay Coupler [NC] Relay Coupler [Swarmer] Relay Coupler [Cutter] Relay Coupler [Grunt] Relay Coupler [Brawler] Relay Coupler [Sentry] Relay Coupler [Behemoth] Bomb Drone Bay Enhanced Autogun Enhanced Autogun Improved Grenade Launcher Remote Datajack Field Lobotomy Kit Heavy Flail [Rating: 57] Favorites ----------- Power Light Nuclear Core Engine Light Angular Momentum Engine Power Core Light Nuclear Core Reactor Light Quantum Reactor Propulsion Light Treads Treads Light Treads Leg Carbon-fiber Leg Wheel Armored Wheel Flight Unit Improved VTOL Module Utility Huge Storage Unit Device Advanced Heat Sink Storage Huge Storage Unit Processor Machine Analyzer Hackware Hacking Suite Protection Hardened Medium Armor Plating Weapon Enhanced Autogun Energy Gun Improved EM Shotgun Energy Cannon Light EM Pulse Cannon Ballistic Gun Enhanced Autogun Ballistic Cannon Heavy Gauss Cannon Launcher Mini Grenade Launcher Impact Weapon Heavy Flail Slashing Weapon Katana Special Melee Weapon Datajack Build | -11 -10 -10 -9 -9 -9 -8 -8 -8 -8 -7 -7 ------- Run | Jun Mat Min Mat Min Exi Min Mat Gar Mat Fac Gar Slots Evolved 6 | . . . 2 . . . 2 . . 2 . Power . | . . . . . . . . . . . . Propulsion 3 | . . . 1 . . . 1 . . 1 . Utility 3 | . . . 1 . . . 1 . . 1 . Weapon . | . . . . . . . . . . . . Parts Attached 149 | . 10 2 21 7 . 1 35 34 1 . 38 Power 16 | . 1 . 3 1 . . 4 3 . . 4 Engine 7 | . . . 2 . . . 1 2 . . 2 Core 8 | . 1 . 1 1 . . 3 1 . . 1 Reactor 1 | . . . . . . . . . . . 1 Propulsion 44 | . 4 2 6 1 . . 9 11 . . 11 Treads 21 | . 2 . . . . . 8 11 . . . Leg 10 | . . . . . . . . . . . 10 Wheel 12 | . 2 2 6 1 . . . . . . 1 Hover . | . . . . . . . . . . . . Flight 1 | . . . . . . . 1 . . . . Utility 29 | . 2 . 3 2 . . 11 5 . . 6 Device 7 | . . . 2 . . . 3 2 . . . Storage 1 | . 1 . . . . . . . . . . Processor 2 | . . . 1 . . . . . . . 1 Hackware 5 | . . . . . . . 2 1 . . 2 Protection 14 | . 1 . . 2 . . 6 2 . . 3 Artifact . | . . . . . . . . . . . . Weapon 60 | . 3 . 9 3 . 1 11 15 1 . 17 Energy Gun 6 | . . . 3 1 . . 2 . . . . Energy Cannon 7 | . . . 3 . . 1 1 1 . . 1 Ballistic Gun 20 | . 2 . . . . . 5 7 . . 6 Ballistic Cannon 1 | . . . . . . . . . . . 1 Launcher 15 | . 1 . 3 1 . . 3 2 . . 5 Special Weapon . | . . . . . . . . . . . . Impact Weapon 5 | . . . . . . . . . 1 . 4 Slashing Weapon 5 | . . . . . . . . 5 . . . Piercing Weapon . | . . . . . . . . . . . . Special Melee Weapon 1 | . . . . 1 . . . . . . . Unidentified Prototypes 5 | . . . 1 . . . 4 . . . . Corrupted Parts 1 | . . . . . . . . 1 . . . System Corruption 3 | . . . . . . . . 3 . . . Parts Lost 37 | . 3 . 5 4 . . 5 6 . . 14 Power 3 | . . . 1 1 . . . 1 . . . Propulsion 20 | . 2 . 1 1 . . 5 3 . . 8 Utility 7 | . . . 1 . . . . 2 . . 4 Weapon 7 | . 1 . 2 2 . . . . . . 2 Highest Loss Streak 4 | . 2 . 3 3 . . 2 2 . . 4 To Critical Strikes 1 | . 1 . . . . . . . . . . Average Slot Usage (%) 94 | . 95 86 97 87 100 100 95 98 100 84 93 Engine 2 | . 9 . 4 . . . 1 1 9 7 3 Core 6 | . 4 14 5 11 11 11 7 6 . . 2 Treads 16 | . 13 12 . . . . 26 34 36 30 4 Leg 7 | . 4 . . . . . . . . . 28 Wheel 8 | . 8 15 32 32 33 33 6 . . . . Device 3 | . . . 10 4 . . 2 2 9 7 3 Storage 9 | . 14 14 11 11 11 11 9 9 9 7 7 Processor 1 | . . . 10 . . . . . . . 1 Hackware 11 | . . . . . . . 14 18 18 15 16 Protection 6 | . 11 1 . 10 22 22 9 6 . . 6 Energy Cannon 1 | . . . 11 . . 11 1 . . . . Ballistic Gun 13 | . 26 28 2 . . . 13 14 14 7 11 Launcher 1 | . . . 1 5 11 11 2 . . . . Naked Turns . | . . . . . . . . . . . . Heaviest Build 111 | 10 91 91 96 100 99 102 111 102 96 96 111 Greatest Support 88 | 20 40 40 44 36 36 36 88 80 80 80 85 Greatest Overweight (x) 9 | . 3 2 2 2 2 2 4 1 1 1 9 Average Overweight (x) 1 | . 1 2 2 2 2 2 1 1 1 1 1 Largest Inventory Capacity 25 | . 25 25 25 25 25 25 25 25 25 25 25 Average Capacity 24 | . 18 25 25 25 25 25 25 25 25 25 25 Most Carried 25 | . 9 19 25 25 25 25 25 25 25 25 25 Average Carried 23 | . 7 14 21 24 23 25 24 24 24 25 24 Final Capacity 25 | 8 25 25 25 25 25 25 25 25 25 25 25 Final Carried 25 | 6 9 19 25 23 25 25 25 25 25 25 19 Class Distribution -------------------- 47% | Scavenger-Mutant 29% | Mutant 13% | Hacker-Mutant 7% | Bothacker-Mutant Dominant Class ---------------- Mutant | -10/Materials Scavenger-Mutant | -10/Mines Mutant | -9/Materials Mutant | -9/Mines Mutant | -9/Exiles Mutant | -8/Mines Hacker-Mutant | -8/Materials Scavenger-Mutant | -8/Garrison Scavenger-Mutant | -8/Materials Scavenger-Mutant | -7/Factory Scavenger-Mutant | -7/Garrison Resources | -11 -10 -10 -9 -9 -9 -8 -8 -8 -8 -7 -7 ----------- Run | Jun Mat Min Mat Min Exi Min Mat Gar Mat Fac Gar Matter Collected 5536 | 193 131 163 420 145 . . 1663 1501 80 . 1240 Remotely . | . . . . . . . . . . . . Salvage Created 8156 | . 303 193 1457 326 . . 2666 1668 . . 1543 Parts 411 | . 21 12 93 11 . . 135 80 . . 59 Haulers Intercepted 12 | . 1 . 5 . . . 6 . . . . Recyclers Shooed 4 | . . . . . . . 4 . . . . Parts Field Recycled . | . . . . . . . . . . . . Retrieved Matter . | . . . . . . . . . . . . Parts Self-Destructed . | . . . . . . . . . . . . Prevented . | . . . . . . . . . . . . Kills | -11 -10 -10 -9 -9 -9 -8 -8 -8 -8 -7 -7 ------- Run | Jun Mat Min Mat Min Exi Min Mat Gar Mat Fac Gar Combat Hostiles Destroyed 154 | . 7 2 28 20 . . 34 32 . . 31 Guns 104 | . 5 2 11 9 . . 28 29 . . 20 Cannons 7 | . . . 4 . . . 1 . . . 2 AOE 41 | . 2 . 12 11 . . 5 3 . . 8 Classes Destroyed 17 | . 6 3 3 1 . . 2 1 . . 1 Worker 4 | . 1 . 1 . . . 2 . . . . Builder 6 | . . 1 2 . . . 3 . . . . Tunneler 1 | . . 1 . . . . . . . . . Hauler 12 | . 1 . 5 . . . 6 . . . . Recycler 11 | . . 1 3 1 . . 6 . . . . Mechanic 1 | . 1 . . . . . . . . . . Operator 4 | . 1 . . . . . 3 . . . . Watcher 9 | . . . 4 . . . 5 . . . . Swarmer 14 | . 3 . 11 . . . . . . . . Grunt 83 | . 4 2 10 1 . . 25 21 . . 20 Brawler 4 | . . . 1 . . . 1 2 . . . Duelist 1 | . . . . . . . 1 . . . . Sentry 27 | . . . 6 1 . . 5 8 . . 7 Specialist 2 | . . . . . . . 2 . . . . Hunter 3 | . . . . . . . . 1 . . 2 Programmer 2 | . . . . . . . . . . . 2 Assembled 18 | . . . . 18 . . . . . . . Best Kill Streak 13 | . 5 3 9 11 . . 13 7 . . 5 Combat Bots Only 11 | . 3 2 5 11 . . 5 7 . . 5 Max Kills in Single Turn 5 | . 3 1 3 2 . . 5 1 . . 2 Gunslinging 1 | . . . . . . . 1 . . . . Exploded 2 | . 2 . 2 2 . . 2 1 . . 2 Melee . | . . . . . . . . . . . . Uniques/NPCs Destroyed . | . . . . . . . . . . . . Combat | -11 -10 -10 -9 -9 -9 -8 -8 -8 -8 -7 -7 -------- Run | Jun Mat Min Mat Min Exi Min Mat Gar Mat Fac Gar Damage Taken 9497 | . 356 38 818 577 . . 2326 2150 . . 3232 Core 1488 | . 54 27 130 83 . . 277 209 . . 708 Absorbed by Shields 134 | . . . 43 91 . . . . . . . Redirected to Shielding 105 | . . . . . . . . . . . 105 Regen/Repaired (Parts) 46 | . . . . . . . . . 46 . . Core Remaining (%) 56 | 100 . 67 . . . 46 . . 11 . . Volleys Fired 605 | . 28 16 76 42 . . 162 143 . . 138 Largest 2 | . 2 2 2 2 . . 2 2 . . 2 Hottest 166 | . 40 40 112 90 . . 63 60 . . 166 Shots Fired 1099 | . 55 32 127 56 . . 305 276 2 . 246 Gun 936 | . 54 32 56 42 . . 280 267 2 . 203 Cannon 82 | . . . 52 . . . 11 2 . . 17 Launcher 81 | . 1 . 19 14 . . 14 7 . . 26 Special . | . . . . . . . . . . . . Kinetic 852 | . 54 32 7 . . . 280 267 2 . 210 Thermal 12 | . . . . . . . . 2 . . 10 Explosive 54 | . 1 . 19 14 . . 8 . . . 12 Electromagnetic 181 | . . . 101 42 . . 17 7 . . 14 Robot Hit Streak 25 | . 7 11 16 14 . . 20 17 . . 25 Robot Miss Streak 5 | . 5 1 5 4 . . 4 5 . . 3 Penetration Max . | . . . . . . . . . . . . Secondary Targets 16 | . 2 . 1 1 . . 4 5 . . 3 Max Gunslinging Chain 1 | . 1 . 1 1 . . 1 1 . . 1 Shots Hit Robots 707 | . 33 25 87 39 4 . 209 146 . . 164 Core Hits 362 | . 19 11 59 43 . . 98 65 . . 67 Critical Kills 2 | . 1 . . . . . 1 . . . . Critical Parts Destroyed 2 | . . 1 . . . . . . . . 1 Critical Strikes 6 | . 1 1 1 . . . 1 . . . 2 Destroy 3 | . 1 1 . . . . 1 . . . . Blast 1 | . . . . . . . . . . . 1 Corrupt 1 | . . . 1 . . . . . . . . Smash 1 | . . . . . . . . . . . 1 Melee Attacks 49 | . . . . . 4 . . 32 1 2 10 Impact 13 | . . . . . . . . . 1 2 10 Slashing 32 | . . . . . . . . 32 . . . Piercing . | . . . . . . . . . . . . Sneak Attacks 4 | . . . . . 4 . . . . . . Combat Hostiles . | . . . . . . . . . . . . Follow-up Attacks . | . . . . . . . . . . . . Damage Inflicted 16302 | . 518 275 2622 1105 . . 4939 2747 . . 4096 Guns 10223 | . 397 275 741 484 . . 3506 2491 . . 2329 Cannons 1426 | . . . 713 . . . 227 . . . 486 Explosions 4448 | . 121 . 1168 621 . . 1206 256 . . 1076 Melee 205 | . . . . . . . . . . . 205 Ramming . | . . . . . . . . . . . . Kinetic 9224 | . 397 275 63 . . . 3506 2491 . . 2492 Thermal 1265 | . . . 217 . . . 604 37 . . 407 Explosive 2699 | . 121 . 951 621 . . 417 . . . 589 Electromagnetic 2909 | . . . 1391 484 . . 412 219 . . 403 Impact 205 | . . . . . . . . . . . 205 Slashing . | . . . . . . . . . . . . Piercing . | . . . . . . . . . . . . Highest Corruption 10 | . . . . . . . 2 10 10 . 2 Average Corruption 3 | . . . . . . . 2 5 10 . 1 Corruption Purged . | . . . . . . . . . . . . Corruption Blocked . | . . . . . . . . . . . . Effects 170 | . . . . . . . 41 68 13 . 48 Message Errors 47 | . . . . . . . 13 20 2 . 12 Matter Fused 40 | . . . . . . . 6 19 2 . 13 Heat Flow Errors 15 | . . . . . . . 5 6 1 . 3 Energy Discharges 19 | . . . . . . . 5 5 5 . 4 Parts Rejected 2 | . . . . . . . 1 1 . . . Parts Fused 1 | . . . . . . . . . . . 1 Data Loss (minor) 25 | . . . . . . . 4 10 1 . 10 Data Loss (major) 7 | . . . . . . . 3 2 . . 2 Misfires 7 | . . . . . . . 2 1 2 . 2 Alerts 3 | . . . . . . . . 2 . . 1 Weapon Failures 4 | . . . . . . . 2 2 . . . Overload Shots . | . . . . . . . . . . . . Overflow Damage 381 | . . . 49 28 . . 100 . . . 204 Projectiles 8 | . . . 7 . . . 1 . . . . Explosions 188 | . . . 42 28 . . 99 . . . 19 Melee 185 | . . . . . . . . . . . 185 Knockbacks 1 | . . . . . . . . . . . 1 Impact 1 | . . . . . . . . . . . 1 Kinetic . | . . . . . . . . . . . . Secondary . | . . . . . . . . . . . . Self-Inflicted Damage 188 | . . . 12 61 . . 101 14 . . . Shots 7 | . . . 1 2 . . 2 2 . . . Rammed . | . . . . . . . . . . . . Targets Rammed . | . . . . . . . . . . . . Kicked . | . . . . . . . . . . . . Crushed . | . . . . . . . . . . . . Highest Temperature 689 | . 53 17 208 252 . . 532 278 145 . 689 Average Temperature 86 | . 19 4 44 93 . . 98 87 80 . 120 Received Heat Transfer 3877 | . 195 21 277 24 . . 1125 1053 . . 1182 Effects 12 | . . . . . . . 5 . . . 7 Shutdowns 3 | . . . . . . . 1 . . . 2 Energy Bleed 2 | . . . . . . . 1 . . . 1 Interference 1 | . . . . . . . . . . . 1 Matter Decay 2 | . . . . . . . 1 . . . 1 Short Circuit 2 | . . . . . . . 1 . . . 1 Damage (minor) 1 | . . . . . . . 1 . . . . Damage (core) 1 | . . . . . . . . . . . 1 Siege Activations . | . . . . . . . . . . . . Robots Corrupted 3 | . . . 2 . . . . . . . 1 Combat Hostiles 2 | . . . 1 . . . . . . . 1 Parts Fried 10 | . . . 7 . . . 2 . . . 1 Impact Corruptions 3 | . . . . . . . . . . . 3 Robots Melted . | . . . . . . . . . . . . Combat Hostiles . | . . . . . . . . . . . . Parts Melted . | . . . . . . . . . . . . Heat Transferred 1133 | . . . 250 . . . 400 50 . . 433 Parts Sabotaged . | . . . . . . . . . . . . Parts Stolen . | . . . . . . . . . . . . Parts Stripped . | . . . . . . . . . . . . Power Chain Reactions 9 | . . . 4 . . . 1 2 . . 2 Missiles Intercepted . | . . . . . . . . . . . . Alert | -11 -10 -10 -9 -9 -9 -8 -8 -8 -8 -7 -7 ------- Run | Jun Mat Min Mat Min Exi Min Mat Gar Mat Fac Gar Peak Influence 2703 | . 186 72 703 390 . . 643 2314 1128 439 2703 Initial 1127 | . . 72 . 273 . . . 403 1127 422 307 Average 745 | . 136 46 397 287 . . 315 1217 1122 426 1212 Maximum Alert Level 5 | . . . 3 1 . . 2 5 4 2 5 Low Security (%) 19 | . 100 100 16 11 . 100 21 . . . . Level 1 20 | . . . 24 88 . . 53 . . . 7 Level 2 20 | . . . 56 . . . 25 13 . 100 27 Level 3 12 | . . . 2 . . . . 34 2 . 18 Level 4 12 | . . . . . . . . 25 97 . 15 Level 5 13 | . . . . . . . . 26 . . 30 High Security . | . . . . . . . . . . . . Max Security . | . . . . . . . . . . . . Squads Dispatched 14 | . 2 . 4 . . . 7 . 1 . . Investigation 9 | . 2 . 4 . . . 3 . . . . Extermination . | . . . . . . . . . . . . Reinforcement 4 | . . . . . . . 4 . . . . Assault 1 | . . . . . . . . . 1 . . Garrison . | . . . . . . . . . . . . Intercept . | . . . . . . . . . . . . Searches Triggered . | . . . . . . . . . . . . Construction Impeded . | . . . . . . . . . . . . Haulers Reinforced . | . . . . . . . . . . . . Active Scanning Responses . | . . . . . . . . . . . . Cargo Convoy Interrupts . | . . . . . . . . . . . . Stealth | -11 -10 -10 -9 -9 -9 -8 -8 -8 -8 -7 -7 --------- Run | Jun Mat Min Mat Min Exi Min Mat Gar Mat Fac Gar Distress Signals 5 | . . . 2 . . . 3 . . . . Communications Jammed . | . . . . . . . . . . . . Distress Signals . | . . . . . . . . . . . . Times Spotted 184 | . 10 3 35 21 . . 46 34 . 1 34 Peak Tracking Total 7 | . 4 2 7 4 . . 6 7 1 1 6 Tactical Retreats 9 | . . . 2 . . . 2 2 . . 3 Traps | -11 -10 -10 -9 -9 -9 -8 -8 -8 -8 -7 -7 ------- Run | Jun Mat Min Mat Min Exi Min Mat Gar Mat Fac Gar Traps Triggered 23 | . 1 . 2 . . . 2 10 . . 8 Indirectly 3 | . . . . . . . . 3 . . . Trap Hack Attempts . | . . . . . . . . . . . . Triggered . | . . . . . . . . . . . . Disarmed . | . . . . . . . . . . . . Reprogrammed . | . . . . . . . . . . . . Reused . | . . . . . . . . . . . . Traps Extracted . | . . . . . . . . . . . . Installed . | . . . . . . . . . . . . Triggered . | . . . . . . . . . . . . Machines | -11 -10 -10 -9 -9 -9 -8 -8 -8 -8 -7 -7 ---------- Run | Jun Mat Min Mat Min Exi Min Mat Gar Mat Fac Gar Machines Disabled 32 | . . . 3 1 . . 8 6 . . 14 Max in Single Turn 3 | . . . 1 1 . . 3 1 . . 2 Garrison Relay 9 | . . . . . . . . 4 . . 5 Phase Generator 1 | . . . . . . . . . . . 1 Machines Repaired . | . . . . . . . . . . . . Machines Sabotaged . | . . . . . . . . . . . . Overloaded Fab Kills . | . . . . . . . . . . . . Hacking | -11 -10 -10 -9 -9 -9 -8 -8 -8 -8 -7 -7 --------- Run | Jun Mat Min Mat Min Exi Min Mat Gar Mat Fac Gar Machines Accessed 28 | . 2 1 6 . 1 . 9 3 1 1 4 Terminals 19 | . 1 . 5 . . . 6 3 . . 4 Fabricators . | . . . . . . . . . . . . Repair Stations 1 | . . . . . . . . . 1 . . Recycling Units 3 | . 1 . 1 . . . 1 . . . . Scanalyzers 1 | . . . . . . . 1 . . . . Garrison Access 2 | . . . . . . . 1 . . 1 . Total Hacks 78 | . 5 1 22 . 1 . 23 8 2 1 15 Successful 41 | . 4 1 10 . 1 . 16 3 2 1 3 Failed 36 | . 1 . 11 . . . 7 5 . . 12 Catastrophic 3 | . . . . . . . . 2 . . 1 Database Lockouts 1 | . . . 1 . . . . . . . . Manual 32 | . 2 . 13 . 1 . 14 2 . . . Terminals 66 | . 3 . 21 . . . 19 8 . . 15 Fabricators . | . . . . . . . . . . . . Repair Stations 2 | . . . . . . . . . 2 . . Recycling Units 4 | . 2 . 1 . . . 1 . . . . Scanalyzers 2 | . . . . . . . 2 . . . . Garrison Access 2 | . . . . . . . 1 . . 1 . Terminal Hacks 23 | . 1 1 6 . 1 . 8 3 . . 3 Record 1 | . . . 1 . . . . . . . . Robot Analysis 8 | . . . 3 . . . 5 . . . . Prototype ID Bank 2 | . . . 1 . . . 1 . . . . Open Door 1 | . . 1 . . . . . . . . . Level Access Points 1 | . . . . . . . 1 . . . . Branch Access Points 1 | . . . 1 . . . . . . . . Emergency Access Points 1 | . . . . . . . . 1 . . . Hauler Manifests 1 | . . . . . . . 1 . . . . Zone Layout 1 | . 1 . . . . . . . . . . Garrison Registry 1 | . . . . . . . . . . . 1 Patrol Navigation 2 | . . . . . . . . 1 . . 1 Security Stations 2 | . . . . . . . . 1 . . 1 EX-Prototype ID Bank 1 | . . . . . 1 . . . . . . Fabricator Hacks . | . . . . . . . . . . . . Repair Station Hacks 2 | . . . . . . . . . 2 . . Scan Component 1 | . . . . . . . . . 1 . . Repair 1 | . . . . . . . . . 1 . . Recycling Unit Hacks 3 | . 2 . . . . . 1 . . . . Report Inventory 2 | . 1 . . . . . 1 . . . . Retrieve Components 1 | . 1 . . . . . . . . . . Scanalyzer 2 | . . . . . . . 2 . . . . Insert Component 1 | . . . . . . . 1 . . . . Analyze 1 | . . . . . . . 1 . . . . Garrison Access Hacks 2 | . . . . . . . 1 . . 1 . Unlock Access 2 | . . . . . . . 1 . . 1 . Unauthorized Hacks 9 | . 1 . 4 . . . 4 . . . . Terminals 8 | . 1 . 3 . . . 4 . . . . Botnet 8 | . 1 . 3 . . . 4 . . . . Fabricators . | . . . . . . . . . . . . Repair Stations . | . . . . . . . . . . . . Recycling Units 1 | . . . 1 . . . . . . . . Tunnel 1 | . . . 1 . . . . . . . . Scanalyzers . | . . . . . . . . . . . . Garrison Access . | . . . . . . . . . . . . Data Cores Recovered 2 | . 1 . . . . . 1 . . . . Used 2 | . 1 . . . . . 1 . . . . Hacking Detections 22 | . 2 . 5 . . . 8 2 1 . 4 Full Trace Events 10 | . 1 . 2 . . . 3 2 . . 2 Feedback Events . | . . . . . . . . . . . . Feedback Blocked . | . . . . . . . . . . . . Robot Schematics Acquired . | . . . . . . . . . . . . Robots Built . | . . . . . . . . . . . . Authchips . | . . . . . . . . . . . . Time . | . . . . . . . . . . . . Total Robot Build Rating . | . . . . . . . . . . . . Part Schematics Acquired 1 | . . . . . . . 1 . . . . Parts Built . | . . . . . . . . . . . . Authchips . | . . . . . . . . . . . . Time . | . . . . . . . . . . . . Total Part Build Rating . | . . . . . . . . . . . . Parts Repaired 1 | . . . . . . . . . 1 . . Time 38 | . . . . . . . . . 38 . . Parts Recycled . | . . . . . . . . . . . . Recycled Matter . | . . . . . . . . . . . . Retrieved Matter . | . . . . . . . . . . . . Retrieved Components 2 | . 2 . . . . . . . . . . Parts Scanalyzed 1 | . . . . . . . 1 . . . . Part Schematics Acquired 1 | . . . . . . . 1 . . . . Parts Damaged . | . . . . . . . . . . . . Bothacking | -11 -10 -10 -9 -9 -9 -8 -8 -8 -8 -7 -7 ------------ Run | Jun Mat Min Mat Min Exi Min Mat Gar Mat Fac Gar Used RIF Installer 2 | . . . . . . . . 1 . . 1 Zone Cloak 1 | . . . . . . . . . . . 1 Robots Hacked 4 | . . . . . 4 . . . . . . Non-combat 3 | . . . . . 3 . . . . . . Combat 1 | . . . . . 1 . . . . . . Robot Hacks Applied 4 | . . . . . 4 . . . . . . parse_system 4 | . . . . . 4 . . . . . . Relay Couplers Released 36 | . . . . . . . . 16 . . 20 Machine Destruction 36 | . . . . . . . . 16 . . 20 Attached 1 | . . . . . . . . . . . 1 Fabnet Peak Effective % . | . . . . . . . . . . . . Robots Rewired . | . . . . . . . . . . . . Allies Hacked . | . . . . . . . . . . . . Hacks Repelled . | . . . . . . . . . . . . Allies | -11 -10 -10 -9 -9 -9 -8 -8 -8 -8 -7 -7 -------- Run | Jun Mat Min Mat Min Exi Min Mat Gar Mat Fac Gar Total Allies 3 | . . 3 . . . . . . . . . Largest Group 3 | . . 3 2 . . . . . . . . Highest-Rated Group 40 | . . 40 24 . . . . . . . . Highest-Rated Ally 16 | . . 16 16 . . . . . . . . Total Orders . | . . . . . . . . . . . . Ally Attacks 39 | . . 14 25 . . . . . . . . Total Damage 377 | . . 163 214 . . . . . . . . Kills 5 | . . 2 3 . . . . . . . . Allies Corrupted . | . . . . . . . . . . . . Allies Melted . | . . . . . . . . . . . . Intel | -11 -10 -10 -9 -9 -9 -8 -8 -8 -8 -7 -7 ------- Run | Jun Mat Min Mat Min Exi Min Mat Gar Mat Fac Gar Robot Analysis Total 8 | . . . 3 . . . 5 . . . . Derelict Logs Recovered 2 | . . 1 . 1 . . . . . . . Drone Launches . | . . . . . . . . . . . . Drone Recoveries . | . . . . . . . . . . . . Exploration | -11 -10 -10 -9 -9 -9 -8 -8 -8 -8 -7 -7 ------------- Run | Jun Mat Min Mat Min Exi Min Mat Gar Mat Fac Gar Turns Passed 13559 | . 339 1219 1098 625 345 195 2918 2919 410 51 3440 Spaces Moved 5387 | 1 126 647 610 391 267 133 972 841 128 19 1252 Core . | . . . . . . . . . . . . Treads 2017 | . 46 150 . . . . 674 841 128 19 159 Legs 1093 | 1 36 . . . . . . . . . 1056 Wheels 2277 | . 44 497 610 391 267 133 298 . . . 37 Hover . | . . . . . . . . . . . . Flight . | . . . . . . . . . . . . Fastest Speed 90 | 120 90 130 120 120 120 120 120 240 240 240 190 Average Speed 184 | 120 187 174 120 120 120 120 197 240 240 240 208 Slowest Speed 750 | 120 320 320 130 120 120 120 465 240 240 240 750 Overloaded Moves . | . . . . . . . . . . . . Propulsion Burnouts . | . . . . . . . . . . . . Robots Hopped . | . . . . . . . . . . . . Cave-ins Triggered . | . . . . . . . . . . . . Exploration Rate (%) 54 | 2 37 99 63 75 63 32 81 90 14 1 94 Regions Visited 11 Branch Regions 4 Pre-discovered Areas 2 | . . 1 1 . . . . . . . . Known Exits Taken 5 | . . . 1 . . 1 1 . 1 1 . Unknown Exits Taken 5 | 1 1 1 . 1 1 . . . . . . Scrap Searched 4 | . . 1 . 3 . . . . . . . Spaces Dug 6 | . . . . . . . . 2 1 2 1 Terrain Destroyed 556 | . 4 . 125 139 . . 88 6 1 2 191 Melee 6 | . . . . . . . . 2 1 2 1 Projectile 3 | . . . . . . . . . . . 3 AOE 547 | . 4 . 125 139 . . 88 4 . . 187 Terrain Rammed . | . . . . . . . . . . . . Walls Destroyed . | . . . . . . . . . . . . Machines Disabled . | . . . . . . . . . . . . Actions | -11 -10 -10 -9 -9 -9 -8 -8 -8 -8 -7 -7 --------- Run | Jun Mat Min Mat Min Exi Min Mat Gar Mat Fac Gar Total 8155 | . 181 710 849 494 291 168 1788 1519 231 21 1903 Wait 1694 | . 3 37 91 42 15 35 541 446 95 . 389 Move 5378 | . 125 646 609 390 266 132 972 840 127 19 1252 Hop . | . . . . . . . . . . . . Pick Up 117 | . 10 8 28 7 3 . 33 8 4 . 16 Fast Attach 40 | . . . 6 . . . 16 5 . . 13 Attach 29 | . 4 . 5 7 . . 4 4 . . 5 Detach 8 | . . 1 1 2 . . 1 . . . 3 Swap 80 | . 6 2 10 . . 1 15 25 1 . 20 Drop 122 | . 5 . 23 4 3 . 44 12 3 . 28 Fire 605 | . 28 16 76 42 . . 162 143 . . 138 Melee 49 | . . . . . 4 . . 32 1 2 10 Ram . | . . . . . . . . . . . . Kick . | . . . . . . . . . . . . Crush . | . . . . . . . . . . . . Escape Stasis 33 | . . . . . . . . 4 . . 29 Rewire . | . . . . . . . . . . . . Trap . | . . . . . . . . . . . . Miscellaneous . | . . . . . . . . . . . . Route ------- -11/Junkyard -10/Materials (discovered 2 exits: *Mat / *Min) -10/Mines (discovered 2 exits: *Mat x2) -9/Materials (discovered 3 exits: *Mat x2 / *Min) -9/Mines (discovered 3 exits: *Mat x2 / *Exi) -9/Exiles -8/Mines (discovered 2 exits: *Mat x2) -8/Materials (discovered 4 exits: *Fac x3 / Gar) -8/Garrison (discovered 3 exits: *Mat x3) -8/Materials -7/Factory -7/Garrison (discovered 3 exits: [*Fac x3]) History --------- Turn | Location | Event 1 | -11/Junkyard | Discovered new exit (range 0) 1 | -11/Junkyard | Entered Materials 144 | -10/Materials | Discovered new exit (range 15) 269 | -10/Materials | Discovered new exit (range 13) 309 | -10/Materials | Build established: Mutant 340 | -10/Materials | Entered Mines 475 | -10/Mines | Discovered new exit (range 4) 492 | -10/Mines | Found the Drone Emporium 507 | -10/Mines | Found Prototype Device 822 | -10/Mines | Assisted by bots powering up and referring to "LRC-V3" 962 | -10/Mines | Discovered new exit (range 10) 1151 | -10/Mines | Build established: Scavenger-Mutant 1488 | -10/Mines | Received a Rocket Launcher from a helpful Derelict 1559 | -10/Mines | Entered Materials 1559 | -9/Materials | Accompanied by 2 allies 1559 | -9/Materials | Evolved 2 slots: Propulsion x1, Utility x1 1772 | -9/Materials | Lost 3 parts (1p2w) 1912 | -9/Materials | Build established: Mutant 1957 | -9/Materials | Identified exit to Mines 2113 | -9/Materials | Discovered new exit (range 16) 2218 | -9/Materials | Central database locked down 2523 | -9/Materials | Discovered new exit (range 4) 2657 | -9/Materials | Entered Mines 2658 | -9/Mines | Assembled infested the area 2663 | -9/Mines | Assisted by a Guerilla fighting off Assembled 2674 | -9/Mines | Met a Derelict bent on vengeance 2684 | -9/Mines | Identified exit to Materials 2718 | -9/Mines | Joined a pair of Derelicts in attacking an 0b10 outpost 2862 | -9/Mines | Discovered exit to Materials (range 5) 2966 | -9/Mines | Lost 3 parts (1p2w) 2985 | -9/Mines | Core integrity fell below 50% 3007 | -9/Mines | Destroyed 11 combat bots 3278 | -9/Mines | Deemed a non-threat by the Exiles lab entrance 3278 | -9/Mines | Discovered new exit (range 5) 3282 | -9/Mines | Entered Exiles 3311 | -9/Exiles | Met 8R-AWN 3332 | -9/Exiles | Met EX-HEX 3391 | -9/Exiles | Met EX-BIN 3406 | -9/Exiles | Aligned with FarCom system 3407 | -9/Exiles | Given EX-Vault access code 3441 | -9/Exiles | Opened EX-Vault 3449 | -9/Exiles | Found Field Lobotomy Kit 3477 | -9/Exiles | Warned to stay clear of 0b10 Research branches 3509 | -9/Exiles | Met EX-DEC 3615 | -9/Exiles | Discovered new exit (range 10) 3627 | -9/Exiles | Left Exiles lab with Field Lobotomy Kit 3627 | -9/Exiles | Entered Mines 3725 | -8/Mines | Discovered exit to Materials (range 8) 3750 | -8/Mines | Discovered exit to Materials (range 14) 3822 | -8/Mines | Entered Materials 3822 | -8/Materials | Evolved 2 slots: Propulsion x1, Utility x1 3963 | -8/Materials | Identified exit to Factory 5273 | -8/Materials | Build established: Hacker-Mutant 6382 | -8/Materials | Core integrity fell below 50% 6740 | -8/Materials | Identified exit to Garrison 6740 | -8/Materials | Entered Garrison 6984 | -8/Garrison | Installed Relay Interface Framework 7047 | -8/Garrison | Destroyed 7 combat bots 7118 | -8/Garrison | Triggered checkpoint 7143 | -8/Garrison | Garrison Relay disabled 7285 | -8/Garrison | Build established: Scavenger-Mutant 7328 | -8/Garrison | Triggered checkpoint 7988 | -8/Garrison | Triggered checkpoint 8205 | -8/Garrison | Core integrity fell below 20% 8335 | -8/Garrison | Triggered checkpoint 8376 | -8/Garrison | Garrison Relay disabled 8434 | -8/Garrison | Discovered new exit (range 10) 8708 | -8/Garrison | System corruption reached 10% 8808 | -8/Garrison | Garrison Relay disabled 8878 | -8/Garrison | Discovered new exit (range 10) 8980 | -8/Garrison | Triggered checkpoint 9182 | -8/Garrison | Discovered new exit (range 12) 9509 | -8/Garrison | Learned Materials security intel 9561 | -8/Garrison | Garrison Relay disabled 9659 | -8/Garrison | Entered Materials 9862 | -8/Materials | Repaired Lgt. Nuclear Core 10005 | -8/Materials | Discovered exit to Factory (range 16) 10059 | -8/Materials | First assault squad dispatched 10069 | -8/Materials | Entered Factory 10069 | -7/Factory | Evolved 2 slots: Propulsion x1, Utility x1 10120 | -7/Factory | Identified exit to Garrison 10120 | -7/Factory | Entered Garrison 10340 | -7/Garrison | Triggered checkpoint 10373 | -7/Garrison | Garrison Relay disabled 10530 | -7/Garrison | Triggered checkpoint 10543 | -7/Garrison | Triggered checkpoint 11129 | -7/Garrison | Discovered new exit (range 12) 11294 | -7/Garrison | Triggered checkpoint 11435 | -7/Garrison | Garrison Relay disabled 11448 | -7/Garrison | Expanded RIF knowledge: Zone Cloak 11804 | -7/Garrison | Triggered checkpoint 11888 | -7/Garrison | Discovered new exit (range 12) 11929 | -7/Garrison | Garrison Relay disabled 11982 | -7/Garrison | Learned Factory security intel 12264 | -7/Garrison | Triggered checkpoint 12358 | -7/Garrison | Triggered checkpoint 12523 | -7/Garrison | Phase Generator disabled 12574 | -7/Garrison | Discovered new exit (range 11) 12637 | -7/Garrison | Triggered checkpoint 12694 | -7/Garrison | Garrison Relay disabled 12751 | -7/Garrison | Discovered new exit (range 27) 12751 | -7/Garrison | Discovered new exit (range 54) 12751 | -7/Garrison | Discovered new exit (range 37) 12953 | -7/Garrison | Build established: Bothacker-Mutant 13094 | -7/Garrison | Garrison Relay disabled 13487 | -7/Garrison | Core integrity fell below 50% 13517 | -7/Garrison | Lost 4 parts (2n2w) 13546 | -7/Garrison | Core integrity fell below 20% 13561 | -7/Garrison | Core destroyed Last Messages --------------- 13508_ Y-54 Guardian destroyed. 13508_ Machine disabled. 13522_ Acquired 70 matter. 13534_ Acquired Imp. Deuterium Engine. 13537_ System corrupted: Component data lost. 13543_ Slug penetrates Y-54 Guardian. 13545_ System Shield destroyed. 13546_ Y-54 Guardian Lgt. Treads blasted off. 13546_ Y-54 Guardian destroyed. 13552_ Imp. Targeting Computer broken. 13552_ Overheating: Short circuit. 13555_ Power failure, Imp. Deuterium Engine shutdown. 13555_ Centrium Wheel destroyed. 13556_ Overheating: Energy bleed (-21). 13558_ Overheating: System interference. 13558_ Matter Neutralizer temporarily disabled. 13558_ Slug penetrates Machine. 13559_ Overheating: Matter decay (-3). 13561_ Power failure, Imp. Deuterium Engine shutdown. 13561_ Overheating: Core damaged (-84). Map ----- +----------------------------------------------------+ | | | | | | | | | | | | | | | | | | | | | | | ??????????????????????????????????????????????? | | ??????????????????????????????????????????????? | | ??????????????????????????????????????????????? | | ??????????????????????????????????????????????? | | ??????????????????????????????????????????????? | | ??????????????????????????????????????????????? | | ??????????????????????????????????????????????? | | ??????????????????????????????????????????????? | | ???????????????????############???????????????? | | ???????????????????#""""""""""#???????????????? | | ????????######????##"""^=!="""#???????????????? | | ????????#"# #????#;"" ! ""#???????????????? | | ????????#" #?????# [!!% ="#???????????????? | | ????????#[ #?????#"=Y;###!="#???????????????? | | ????????#" ##????#"*@# *"#???????????????? | | ????????#"# #????# *%=% #= "#???????????????? | | ????????### ###???#"* #%##= "#???????????????? | | ?????????## #???#"*[ ^="#???????????????? | | ????????## [* #???#"" = ""#???????????????? | | ????????# # [#???###=== ###???????????????? | | ????????## ###?????# = #?????????????????? | | ?????????## #???????##### #?????????????????? | | ??????????# ############# ########??????????? | | ??????##### #??????????? | | ??????#" ] #??????????? | | ??????#"T"# ######## ######### #??????????? | | ??????##### #??????# #???????# #??????????? | | ??????????# #??????## ##???????# #??????????? | | ??????????# #???????# ########## #??????????? | | ??????????# #???????# # #??????????? | | ??????????# #???????############ #??????????? | | ??????????# #??????????????????# #??????????? | | ??????????# #??????????????????# #??????????? | | ?????###### #??????????????????# #??????????? | | ?????# # #??????????????????# #??????????? | | ?????## ##?????????????????# #??????????? | | ?????# ## ##????????????????# #??????????? | | ??#### # #????????????????# =#??????????? | | ??# # # #????????????????# #??????????? | +----------------------------------------------------+ Best States ------------- Heat Dissipation 53 Energy Generation 25 Energy Capacity 290 Matter Stores 300 Matter Capacity 300 Sight Range 16 Terrain Scan Range 16 Terrain Scan Density 10 Armor Coverage 450 Resistance: TH 10 Weapon Shielding 66 Evasion (%) 50 Targeting Accuracy 6 Recoil Reduction 4 Offensive Hacking 20 Defensive Hacking 10 Item Schematics ----------------- Humpback | -8/Materials | Scanalyzed Robot Schematics ------------------ None Fabricated ------------ Nothing Alien Tech Used ----------------- None Achievements -------------- None Challenges ------------ None Game ------ Seed LargeZhirovActivator Manual? 0 Play Time 01:15:18 Cumulative 524.5 hours Start 2023.04.02 @ 21:58:36 End 2023.04.03 @ 00:27:58 Sessions 1 Manual Loads 0 Difficulty Rogue Special Mode None Game No. 558 Rogue 558 Adventurer 0 Explorer 0 Win Type - Total 1 Types 1/0/0/0/0/0/0/0/0 Lore% 65 Gallery% 83 Achievement% 66 Wizard Run 0 Options --------- ASCII 0 Keyboard 0 Movement Mouse Keybinds 0 Fullscreen 2 Font 24/Smallcaps Map View 76x50 Tactical HUD 1 Map Filters NONE Filters NONE Steam 1 RUN: 9b26d9b0-00f6-4121-91b6-b7122183fb16